Cogmind - Beta 15 @@@ ROGUE MODE // 2025.06.17 @ 03:43:01 Player: CL-1C0 Result: Self-destructed Performance ------------- Evolutions (1) 500 Regions Visited (2) 400 Robots Destroyed (1) 5 Value Destroyed (5) 5 Prototype IDs (0) 0 Alien Tech Used (0) 0 Bonus (200) 200 TOTAL SCORE: 1110 Bonus ------- Pacifist 200 Cogmind --------- Core Integrity 385/400 Matter 270/300 Energy 99/100 System Corruption 0% Temperature Cool (0) Movement Core (50) Location -9/Materials Parts ------- > --- POWER (1) -------- (None) > --- PROPULSION (3) --- Light Treads Light Treads > --- UTILITY (3) ------ Structural Scanner Terrain Scanner > --- WEAPON (2) ------- (None) > --- INVENTORY (5) ---- Terrain Scan Processor Terrain Scan Processor Terrain Scan Processor Terrain Scan Processor Terrain Scan Processor Peak State ------------ > --- POWER ------------ (None) > --- PROPULSION ------- Light Treads Light Treads > --- UTILITY ---------- Structural Scanner Terrain Scanner > --- WEAPON ----------- Mining Claw > --- INVENTORY -------- Terrain Scan Processor Terrain Scan Processor Terrain Scan Processor Terrain Scan Processor Terrain Scan Processor [Rating: 6] Favorites ----------- Power None Propulsion Light Treads Treads Light Treads Utility Terrain Scanner Device Terrain Scanner Weapon Mining Claw Slashing Weapon Mining Claw Build | -11 -10 -9 ------- Run | Yrd Mat Mat Slots Evolved 2 | . . 2 Power . | . . . Propulsion 1 | . . 1 Utility 1 | . . 1 Weapon . | . . . Parts Attached 5 | 2 . 3 Power . | . . . Engine . | . . . Core . | . . . Reactor . | . . . Propulsion 2 | 2 . . Treads 2 | 2 . . Leg . | . . . Wheel . | . . . Hover . | . . . Flight . | . . . Utility 2 | . . 2 Device 2 | . . 2 Storage . | . . . Processor . | . . . Hackware . | . . . Protection . | . . . Artifact . | . . . Weapon 1 | . . 1 Energy Gun . | . . . Energy Cannon . | . . . Ballistic Gun . | . . . Ballistic Cannon . | . . . Launcher . | . . . Special Weapon . | . . . Impact Weapon . | . . . Slashing Weapon 1 | . . 1 Piercing Weapon . | . . . Special Melee Weapon . | . . . Unidentified Prototypes . | . . . Parts Lost . | . . . Power . | . . . Propulsion . | . . . Utility . | . . . Weapon . | . . . Highest Loss Streak . | . . . To Critical Strikes . | . . . Average Backups 3 | 4 1 4 Power . | 1 . . Propulsion . | 3 . . Utility 3 | . 1 4 Weapon . | . . . Tool/Special . | . . . Unused Backups 5 | . . 5 Power . | . . . Propulsion . | . . . Utility 5 | . . 5 Weapon . | . . . Tool/Special . | . . . Average Slot Usage (%) 30 | . 28 32 Treads 23 | . 28 22 Device 4 | . . 6 Slashing Weapon 2 | . . 3 Peak Build Rating 6 | 2 2 6 Average Rating 3 | 1 2 3 On Entrance 3 | 6 2 2 Naked Turns . | . . . Heaviest Build 3 | . . 3 Greatest Support 3 | 3 3 3 Greatest Overweight (x) . | . . . Average Overweight (x) . | . . . Largest Inventory Capacity 5 | 5 5 5 Average Capacity 5 | 5 5 5 Most Carried 5 | 4 4 5 Average Carried 4 | 2 1 4 Final Capacity 5 | 5 5 5 Final Carried 5 | . 4 5 Class Distribution -------------------- 100% | Mutant Dominant Class ---------------- Mutant | -10/Materials Mutant | -9/Materials Resources | -11 -10 -9 ----------- Run | Yrd Mat Mat Matter Collected 218 | 200 . 18 Remotely . | . . . Salvage Created 18 | . . 18 Parts 6 | . . 6 Haulers Intercepted . | . . . Recyclers Shooed . | . . . Parts Field Recycled . | . . . Retrieved Matter . | . . . Parts Self-Destructed . | . . . Prevented . | . . . Kills | -11 -10 -9 ------- Run | Yrd Mat Mat Combat Hostiles Destroyed . | . . . Classes Destroyed 1 | . . 1 Builder 1 | . . 1 Best Kill Streak 1 | . . 1 Combat Bots Only . | . . . Max Kills in Single Turn 1 | . . 1 Gunslinging . | . . . Exploded . | . . . Melee . | . . . Uniques/NPCs Destroyed . | . . . Combat | -11 -10 -9 -------- Run | Yrd Mat Mat Hostile Shots Fired 20 | . 4 16 Missed 10 | . 3 7 Hits 10 | . 1 9 Projectile 10 | . 1 9 Damage Taken 144 | . 11 133 Core 26 | . 11 15 Absorbed by Shields . | . . . Core Remaining (%) 97 | 100 95 . Volleys Fired . | . . . Largest . | . . . Hottest . | . . . Shots Fired . | . . . Gun . | . . . Cannon . | . . . Launcher . | . . . Special . | . . . Kinetic . | . . . Thermal . | . . . Explosive . | . . . Electromagnetic . | . . . Robot Hit Streak . | . . . Robot Miss Streak . | . . . Penetration Max . | . . . Secondary Targets . | . . . Shots Hit Robots 1 | . . 1 Core Hits 1 | . . 1 Critical Kills . | . . . Critical Parts Destroyed . | . . . Critical Strikes . | . . . Melee Attacks 5 | . . 5 Impact . | . . . Slashing 5 | . . 5 Piercing . | . . . Sneak Attacks 1 | . . 1 Combat Hostiles . | . . . Follow-up Attacks . | . . . Damage Inflicted 55 | . 3 52 Guns . | . . . Cannons . | . . . Explosions . | . . . Melee 52 | . . 52 Ramming 3 | . 3 . Kinetic . | . . . Thermal . | . . . Explosive . | . . . Electromagnetic . | . . . Impact . | . . . Slashing 52 | . . 52 Piercing . | . . . Highest Corruption . | . . . Average Corruption . | . . . Corruption Purged . | . . . Corruption Blocked . | . . . Overload Shots . | . . . Overflow Damage . | . . . Projectiles . | . . . Explosions . | . . . Melee . | . . . Knockbacks . | . . . Impact . | . . . Kinetic . | . . . Secondary . | . . . Self-Inflicted Damage . | . . . Shots . | . . . Rammed 1 | . 1 . Targets Rammed 1 | . 1 . Kicked . | . . . Crushed . | . . . Highest Temperature . | . . . Average Temperature . | . . . Received Heat Transfer 51 | . 6 45 Siege Activations . | . . . Martial Activations . | . . . Shielding Activations . | . . . Robots Disrupted . | . . . Combat Hostiles . | . . . Robots Corrupted . | . . . Combat Hostiles . | . . . Parts Fried . | . . . Impact Corruptions . | . . . Robots Melted . | . . . Combat Hostiles . | . . . Parts Melted . | . . . Heat Transferred . | . . . Parts Sabotaged . | . . . Parts Stolen . | . . . Parts Stripped . | . . . Power Chain Reactions . | . . . Alert | -11 -10 -9 ------- Run | Yrd Mat Mat Maximum Alert Level . | . . . Low Security (%) 100 | 100 100 100 Level 1 . | . . . Level 2 . | . . . Level 3 . | . . . Level 4 . | . . . Level 5 . | . . . High Security . | . . . Max Security . | . . . Peak Influence 57 | . . 57 Initial . | . . . Average 14 | . . 19 Influence Increases 68 | . . 68 Destroy 0b10 Robot/NC 5 | . . 5 Destroy Structure 3 | . . 3 Lose Combat Pursuer 60 | . . 60 Influence Decreases 31 | . . 31 Time Decay 31 | . . 31 Squads Dispatched 3 | . 1 2 Investigation 2 | . 1 1 Extermination . | . . . Reinforcement 1 | . . 1 Assault . | . . . Garrison . | . . . Intercept . | . . . Searches Triggered . | . . . Construction Impeded . | . . . Haulers Reinforced . | . . . Active Scanning Responses . | . . . Cargo Convoy Interrupts . | . . . Stealth | -11 -10 -9 --------- Run | Yrd Mat Mat Distress Signals 1 | . . 1 Communications Jammed . | . . . Distress Signals . | . . . Times Spotted 7 | . 2 5 Peak Tracking Total 5 | . 3 5 Tactical Retreats 2 | . . 2 Traps | -11 -10 -9 ------- Run | Yrd Mat Mat Traps Triggered . | . . . Indirectly . | . . . Trap Hack Attempts . | . . . Triggered . | . . . Disarmed . | . . . Reprogrammed . | . . . Reused . | . . . Traps Extracted . | . . . Installed . | . . . Triggered . | . . . Machines | -11 -10 -9 ---------- Run | Yrd Mat Mat Machines Disabled . | . . . Max in Single Turn . | . . . Machines Repaired . | . . . Machines Dismantled . | . . . Machines Sabotaged . | . . . Overloaded Fab Kills . | . . . Hacking | -11 -10 -9 --------- Run | Yrd Mat Mat Machines Accessed 3 | . 1 2 Terminals 3 | . 1 2 Fabricators . | . . . Repair Stations . | . . . Recycling Units . | . . . Scanalyzers . | . . . Garrison Access . | . . . Total Hacks 8 | . 2 6 Successful . | . . . Failed 8 | . 2 6 Catastrophic 4 | . . 4 Database Lockouts . | . . . Manual 8 | . 2 6 Terminals 8 | . 2 6 Fabricators . | . . . Repair Stations . | . . . Recycling Units . | . . . Scanalyzers . | . . . Garrison Access . | . . . Terminal Hacks . | . . . Fabricator Hacks . | . . . Repair Station Hacks . | . . . Recycling Unit Hacks . | . . . Scanalyzer . | . . . Garrison Access Hacks . | . . . Unauthorized Hacks . | . . . Terminals . | . . . Fabricators . | . . . Repair Stations . | . . . Recycling Units . | . . . Scanalyzers . | . . . Garrison Access . | . . . Data Cores Recovered . | . . . Used . | . . . Hacking Detections 3 | . 1 2 Full Trace Events 3 | . 1 2 Feedback Events . | . . . Feedback Blocked . | . . . Robot Schematics Acquired . | . . . Robots Built . | . . . Authchips . | . . . Time . | . . . Total Robot Build Rating . | . . . Part Schematics Acquired . | . . . Parts Built . | . . . Authchips . | . . . Time . | . . . Total Part Build Rating . | . . . Parts Repaired . | . . . Time . | . . . Parts Recycled . | . . . Recycled Matter . | . . . Retrieved Matter . | . . . Retrieved Components . | . . . Parts Scanalyzed . | . . . Part Schematics Acquired . | . . . Parts Damaged . | . . . Bothacking | -11 -10 -9 ------------ Run | Yrd Mat Mat Used RIF Installer . | . . . Robots Hacked . | . . . Non-combat . | . . . Combat . | . . . Robot Hacks Applied . | . . . Relay Couplers Released . | . . . Fabnet Peak Effective % . | . . . Robots Rewired . | . . . Allies Hacked . | . . . Hacks Repelled . | . . . Allies | -11 -10 -9 -------- Run | Yrd Mat Mat Total Allies . | . . . Largest Group . | . . . Highest-Rated Group . | . . . Highest-Rated Ally . | . . . Total Orders . | . . . Ally Attacks . | . . . Total Damage . | . . . Kills . | . . . Allies Corrupted . | . . . Allies Melted . | . . . Intel | -11 -10 -9 ------- Run | Yrd Mat Mat Active Infowar (turns) 39 | . . 39 Terrain 39 | . . 39 Structural 36 | . . 36 Robot Analysis Total . | . . . Derelict Logs Recovered . | . . . Drone Launches . | . . . Drone Recoveries . | . . . Exploration | -11 -10 -9 ------------- Run | Yrd Mat Mat Turns Passed 179 | 4 45 130 Spaces Moved 296 | 1 79 216 Core 296 | 1 79 216 Treads . | . . . Legs . | . . . Wheels . | . . . Hover . | . . . Flight . | . . . Fastest Speed 50 | 50 50 50 Average Speed 50 | 50 50 50 Slowest Speed 50 | 50 50 50 Overloaded Moves . | . . . Propulsion Burnouts . | . . . Robots Hopped . | . . . Potential Cave-ins . | . . . Cave-ins Triggered . | . . . Exploration Rate (%) 18 | 2 27 27 Regions Visited 2 Branch Regions . Pre-discovered Areas . | . . . Known Exits Taken . | . . . Unknown Exits Taken 2 | 1 1 . Scrap Searched . | . . . Spaces Dug 3 | . . 3 Terrain Destroyed 3 | . . 3 Melee 3 | . . 3 Projectile . | . . . AOE . | . . . Terrain Rammed . | . . . Walls Destroyed . | . . . Machines Disabled . | . . . Actions | -11 -10 -9 --------- Run | Yrd Mat Mat Total 314 | 5 83 226 Wait . | . . . Move 294 | . 78 216 Hop . | . . . Pick Up 5 | . 4 1 Fast Attach 3 | . . 3 Attach 2 | 2 . . Detach . | . . . Swap . | . . . Drop 4 | 3 . 1 Fire . | . . . Melee 5 | . . 5 Ram . | . . . Kick . | . . . Crush 1 | . 1 . Escape Stasis . | . . . Rewire . | . . . Trap . | . . . Miscellaneous . | . . . Route ------- -11/Scrapyard -10/Materials -9/Materials History --------- Turn | Location | Event 1 | -11/Scrapyard | Released all parts (6) 5 | -11/Scrapyard | Discovered new exit (range 0) 5 | -11/Scrapyard | Entered Materials 43 | -10/Materials | Discovered new exit (range 16) 50 | -10/Materials | Entered another Materials area 50 | -9/Materials | Evolved 2 slots: Propulsion x1, Utility x1 180 | -9/Materials | Self-destructed Last Messages --------------- GOAL=ESCAPE 00061_ Acquired Terrain Scan Processor. 00064_ Connecting with Terminal... 00064_ Current location identified: Materials 00074_ Connecting with Terminal... 00074_ ALERT: Suspicious activity at Terminal M010. Dispatching Investigation squad. 00083_ K-01 Serf collects debris. 00097_ Acquired Mining Claw. 00098_ K-01 Serf collects debris. 00100_ ALERT: Hostiles spotted, dispatching reinforcements to Terminal M011. 00137_ Sneak attack on U-05 Engineer. 00137_ U-05 Engineer destroyed. 00139_ Acquired 18 matter. 00141_ Acquired Terrain Scanner. 00144_ Acquired Structural Scanner. 00145_ Dropped Mining Claw. 00146_ U-05 Engineer builds a Wall. 00156_ K-01 Serf collects debris. Map ----- +----------------------------------------------------+ | # # ?????????? #### # | | # # ?????????????############## | | # + ??????"??????########## | | # # ???????????????# # ! | | # # ???????????????# "" # | | # # # ? ????????# Y" # """ | | # # ####+#####?????# "" # """ | | # # #### ########### # """ | | # # # # | | ####+## + # | | #### ## """ # ##### | | ####+## !!! """ [[ ######### | | # # !!! """ [ | | # # !!! """ [ | | # """ # | | # """ # | | # """ # ######################## | | # + ##?????????????????????# | | # # ##########?????????????# | | # # ##########?????????????# | | # # # """ """ ##???????????# | | # "" # # """ """ ##???????????# | | # S"" # # """ """ ##?????????### | | # "" # # ##????????? # | | ####### + + ????????" # | | ##########@ ##????????" # | | ???#?##### ##??#????"" # | | ????????## ##??? # | | ????????#############????[ """ # | | ????????#############????? """ # | | ???????????????????????????""" # | | ???????????????????????????? # | | ?????#########################/## | | ?????# | | ?????# | | ?????# """ | | ?????############ """ ###+#### | | ?????????# # """ # | | ?????????# """ # # | | ?????????# "T" + # | | ?????????# # """ # | | ?????????# == ! + """ + | | ?????????# = # """ # [ | | ?????############ # | | ????? # # | | ?????????"" """ + # | | ?????????"" """ ##########+######## | | ?????????"" """ ???????# # | | ????????? ????????#! * ## | | ?????????##+###????????# #? | +----------------------------------------------------+ Best States ------------- Heat Dissipation 28 Energy Generation 5 Energy Capacity 100 Matter Stores 290 Matter Capacity 300 Sight Range 16 Terrain Scan Range 14 Terrain Scan Density 10 Evasion (%) 50 Recoil Reduction 2 Item Schematics ----------------- None Robot Schematics ------------------ None Fabricated ------------ Nothing Repaired ---------- Nothing Alien Tech Used ----------------- None Achievements -------------- None Challenges ------------ None Game ------ Seed FusionPointySource Manual? 0 Play Time 00:03:29 Cumulative 541.4 hours Start 2025.06.17 @ 03:40:53 End 2025.06.17 @ 03:43:01 Sessions 1 Manual Loads 0 Difficulty Rogue Special Mode None Game No. 648 Rogue 648 Adventurer 0 Explorer 0 Win Type - Total 19 Types 13/0/5/1/0/0/0/0/0/0 Lore% 84 Gallery% 83 Achievement% 82 Wizard Run 0 Options --------- Layout 0 ASCII 0 Keyboard 0 Movement Numpad Keybinds 0 Fullscreen 1 Font 18/SmallcapsGlow Map View 76x50 Zoom Use 0% Tactical HUD 1 Map Filters NONE Filters NONE Steam 1 RUN: 46dbf386-b0d1-449e-8099-562946d0ed64